fUSD/lending_fUSD_20260112
["ID","MTS","AMOUNT","RATE_DAILY","PERIOD"]
[401409097,1768189842951,-1138.28,0.00014396,2]
[401409098,1768189842960,-1030.21,0.00014412,2]
[401409099,1768189842970,-250.0,0.00014417,2]
[401409100,1768189842979,-250.0,0.00014418,2]
[401409101,1768189842988,-1917.77,0.00014428,2]
[401409102,1768189842998,-999.0,0.00014438,2]
[401409103,1768189843008,-151.0,0.00014449,2]
[401409104,1768189843017,-999.0,0.00014493,2]
[401409105,1768189843027,-250.0,0.00014521,2]
[401409106,1768189843036,-195.0,0.00014521,2]
[401409107,1768189843046,-999.0,0.00014547,2]
[401409108,1768189843056,-151.0,0.00014567,2]
[401409109,1768189843066,-151.0,0.00014567,2]
[401409110,1768189843076,-155.25,0.00014569,2]
[401409111,1768189843086,-1000.0,0.00014602,2]
[401409112,1768189843100,-1020.50729897,0.00014602,2]
[401409113,1768189843109,-1138.28,0.0001467,2]
[401409114,1768189843119,-231.49,0.00014751,2]
[401409115,1768189843130,-1917.77,0.00014821,2]
[401409116,1768189843140,-10400.84246454,0.00014823,2]
[401409117,1768189843149,-809.67411052,0.00014823,2]
[401409118,1768189843159,-14654.50615538,0.00014823,2]
[401409119,1768189843171,-530.44606972,0.00014944,2]
[401409120,1768189843181,-202.52855456,0.00014944,2]
[401409121,1768189843190,-1138.28,0.00014944,2]
[401409122,1768189843200,-300.0,0.00015,3]
[401409123,1768189843210,-587.42192138,0.00015066,2]
[401409124,1768189843220,-500.0,0.00015066,2]
[401409125,1768189843229,-1000.0,0.00015066,2]
[401409126,1768189843239,-250.0,0.00015066,2]
[401409127,1768189843249,-596.45794467,0.00015066,2]
[401409128,1768189843258,-1000.0,0.00015066,2]
[401409129,1768189843267,-250.0,0.00015066,2]
[401409130,1768189843277,-1000.0,0.00015066,2]
[401409131,1768189843287,-500.0,0.00015066,2]
[401409132,1768189843297,-250.0,0.00015066,2]
[401409133,1768189843308,-1000.0,0.00015066,2]
[401409134,1768189843319,-500.0,0.00015066,2]
[401409135,1768189843330,-250.0,0.00015066,2]
[401409136,1768189843343,-1000.0,0.00015066,2]
[401409138,1768189843354,-500.0,0.00015066,2]
[401409139,1768189843365,-250.0,0.00015066,2]
[401409141,1768189843375,-1000.0,0.00015066,2]
[401409142,1768189843384,-500.0,0.00015066,2]
[401409143,1768189843393,-250.0,0.00015066,2]
[401409144,1768189843404,-1000.0,0.00015066,2]
[401409145,1768189843414,-354.6611943,0.00015066,2]
[401409146,1768189843424,-250.0,0.00015066,2]
[401409147,1768189843435,-1000.0,0.00015066,2]
[401409148,1768189843445,-250.0,0.00015066,2]
[401409149,1768189843455,-250.0,0.00015066,2]
[401409150,1768189843468,-1000.0,0.00015066,2]
[401409151,1768189843479,-250.0,0.00015066,2]
[401409152,1768189843488,-621.07435029,0.00015066,2]
[401409153,1768189843499,-1000.0,0.00015066,2]
[401409154,1768189843508,-250.0,0.00015066,2]
[401409155,1768189843519,-1000.0,0.00015066,2]
[401409156,1768189843531,-250.0,0.00015066,2]
[401409157,1768189843541,-1000.0,0.00015066,2]
[401409158,1768189843550,-202.5130151,0.00015066,2]
[401409159,1768189843560,-250.0,0.00015066,2]
[401409160,1768189843569,-1125.63397898,0.00015066,2]
[401409161,1768189843579,-250.0,0.00015066,2]
[401409162,1768189843590,-250.0,0.00015066,2]
[401409163,1768189843601,-250.0,0.00015066,2]
[401409164,1768189843610,-250.0,0.00015066,2]
[401409165,1768189843619,-250.0,0.00015066,2]
[401409166,1768189843629,-620.0,0.00015066,2]
[401409167,1768189843640,-250.0,0.00015066,2]
[401409168,1768189843650,-250.0,0.00015066,2]
[401409169,1768189843660,-250.0,0.00015066,2]
[401409170,1768189843670,-250.0,0.00015066,2]
[401409171,1768189843681,-250.0,0.00015066,2]
[401409172,1768189843691,-268.06518829,0.00015066,2]
[401409173,1768189843963,-250.0,0.00015066,2]
[401409174,1768189843973,-262.80813108,0.00015066,2]
[401409175,1768189843983,-274.26884757,0.00015066,2]
[401409176,1768189843992,-151.25256783,0.00015066,2]
[401409177,1768189844002,-322.6107,0.00015066,2]
[401409178,1768189844011,-250.0,0.00015066,2]
[401409179,1768189844020,-266.15702234,0.00015066,2]
[401409180,1768189844030,-250.0,0.00015066,2]
[401409182,1768189844041,-250.0,0.00015066,2]
[401409184,1768189844051,-270.2171612,0.00015066,2]
[401409186,1768189844062,-998.0,0.00015066,2]
[401409187,1768189844072,-533.88981491,0.00015066,2]
[401409188,1768189844081,-683.82185525,0.00015066,2]
[401409189,1768189844093,-664.65,0.00015068,2]
[401409190,1768189844104,-671.22,0.000152,2]
[401409191,1768189844116,-1917.77,0.00015213,2]
[401409192,1768189844127,-1138.28,0.00015218,2]
[401409193,1768189844138,-500.0,0.00015319,2]
[401409194,1768189844150,-500.0,0.00015319,2]
[401409195,1768189844161,-522.479568,0.00015319,2]
[401409196,1768189844175,-10400.84246454,0.00015336,2]
[401409197,1768189844185,-14654.50615538,0.00015336,2]
[401409198,1768189844197,-433.0,0.000154,2]
[401409199,1768189844208,-180.0,0.00015456,2]
[401409200,1768189844217,-1138.28,0.00015492,2]
[401409201,1768189844226,-809.67411052,0.00015593,2]
[401409202,1768189844236,-553.64373807,0.00015614,2]
[401409203,1768189844245,-3731.00451843,0.0001564,2]
[401409204,1768189844255,-587.0,0.00015759,2]
[401409205,1768189844273,-2351.0,0.00015759,2]
[401409206,1768189844285,-1138.28,0.00015766,2]
[401409207,1768189844295,-1000.0,0.00015782,2]
[401409208,1768189844306,-10400.84246454,0.00015849,2]
[401409209,1768189844315,-14654.50615538,0.00015849,2]
[401409210,1768189844327,-4831.1649,0.000159,2]
[401409211,1768189844337,-1000.0,0.00015924,2]
[401409212,1768189844348,-1000.0,0.00016003,2]
[401409213,1768189844358,-1030.21,0.00016014,2]
[401409214,1768189844368,-1000.0,0.00016022,2]
[401409215,1768189844378,-207.4,0.00016039,2]
[401409216,1768189844388,-1138.28,0.0001604,2]
[401409217,1768189844400,-1467.83,0.00016081,2]
[401409218,1768189844410,-1323.64,0.00016082,2]
[401409219,1768189844421,-1000.0,0.000161,2]
[401409220,1768189844432,-9999.99,0.00016116,2]
[401409221,1768189844442,-574.12855637,0.00016162,2]
[401409222,1768189844451,-150.0,0.000162,2]
[401409223,1768189844462,-150.0,0.000162,2]
[401409224,1768189844472,-150.0,0.000162,2]
[401409225,1768189844482,-350.68764993,0.000162,2]
[401409226,1768189844492,-150.0,0.000162,2]
[401409227,1768189844502,-150.5110912,0.000162,2]
[401409228,1768189844512,-150.0,0.000162,2]
[401409229,1768189844522,-150.64069561,0.000162,2]
[401409230,1768189844533,-150.0,0.000162,2]
[401409231,1768189844542,-150.48103859,0.000162,2]
[401409232,1768189844553,-150.0,0.000162,2]
[401409233,1768189844565,-150.0,0.000162,2]
[401409234,1768189844575,-150.0,0.000162,2]
[401409235,1768189844584,-150.0,0.000162,2]
[401409236,1768189844594,-150.0,0.000162,2]
[401409237,1768189844609,-350.68764993,0.00016218,2]
[401409238,1768189844619,-1000.0,0.00016225,2]
[401409239,1768189844630,-350.68764993,0.00016236,2]
[401409240,1768189844640,-999.0,0.00016239,3]
[401409241,1768189844651,-16139.26,0.00016248,2]
[401409242,1768189844661,-350.68764993,0.00016255,2]
[401409243,1768189844671,-350.68764993,0.00016273,2]
[401409244,1768189844683,-350.68764993,0.00016291,2]
[401409245,1768189844693,-1000.0,0.00016294,2]
[401409246,1768189844704,-350.68764993,0.00016309,2]
[401409247,1768189844717,-1138.30109109,0.00016314,2]
[401409248,1768189844729,-1000.0,0.00016316,2]
[401409249,1768189844739,-350.68764993,0.00016327,2]
[401409250,1768189844751,-150.0,0.00016329,2]
[401409251,1768189844761,-150.0,0.00016329,2]
[401409252,1768189844772,-1000.0,0.00016332,2]
[401409253,1768189844784,-150.0,0.00016338,2]
[401409254,1768189844795,-350.68764993,0.00016345,2]
[401409255,1768189844807,-150.0,0.0001635,2]
[401409256,1768189844817,-10400.84246454,0.00016362,2]
[401409257,1768189844827,-809.67411052,0.00016362,2]
[401409258,1768189844838,-14654.50615538,0.00016362,2]
[401409259,1768189844849,-350.68764993,0.00016364,2]
[401409260,1768189844858,-150.0,0.0001638,2]
[401409261,1768189844868,-350.68764993,0.00016382,2]
[401409262,1768189844879,-1000.0,0.00016384,2]
[401409263,1768189844891,-350.68764993,0.000164,2]
[401409264,1768189844900,-162.0,0.000164,2]
[401409265,1768189844910,-350.68764993,0.00016418,2]
[401409266,1768189844920,-150.0,0.00016425,2]
[401409267,1768189844929,-150.0,0.00016425,2]
[401409268,1768189844939,-219.07665552,0.00016429,2]
[401409269,1768189844949,-642.94,0.00016435,2]
[401409270,1768189844959,-334.5472959,0.00016435,2]
[401409271,1768189844973,-350.68764993,0.00016436,2]
[401409272,1768189844983,-500.0,0.00016438,2]
[401409273,1768189844994,-500.0,0.00016438,2]
[401409274,1768189845004,-226.66,0.00016438,2]
[401409275,1768189845015,-800.75292195,0.00016438,2]
[401409276,1768189845025,-888.0,0.00016438,2]
[401409277,1768189845035,-664.65,0.00016438,2]
[401409278,1768189845045,-151.0,0.00016438,2]
[401409279,1768189845056,-350.68764993,0.00016455,2]
[401409280,1768189845066,-150.0,0.00016457,2]
[401409281,1768189845076,-150.0,0.00016457,2]
[401409282,1768189845087,-350.68764993,0.00016473,2]
[401409283,1768189845103,-150.0,0.00016477,2]
[401409284,1768189845117,-350.68764993,0.00016491,2]
[401409285,1768189845127,-150.0,0.000165,2]
[401409286,1768189845138,-150.0,0.000165,2]
[401409287,1768189845147,-350.68764993,0.00016509,2]
[401409288,1768189845158,-350.68764993,0.00016527,2]
[401409289,1768189845170,-1000.0,0.00016533,2]
[401409290,1768189845183,-350.68764993,0.00016545,2]
[401409291,1768189845195,-1000.0,0.00016557,2]
[401409292,1768189845207,-150.0,0.0001656,2]
[401409293,1768189845219,-350.68764993,0.00016564,2]
[401409294,1768189845228,-1000.0,0.00016573,2]
[401409295,1768189845238,-350.68764993,0.00016582,2]
[401409296,1768189845249,-150.0,0.00016586,2]
[401409297,1768189845262,-150.0,0.00016586,2]
[401409298,1768189845272,-350.68764993,0.000166,2]
[401409299,1768189845282,-500.0,0.00016603,2]
[401409300,1768189845292,-150.0,0.00016615,2]
[401409302,1768189845302,-350.68764993,0.00016618,2]
[401409304,1768189845312,-1000.0,0.00016635,2]
[401409306,1768189845326,-350.68764993,0.00016636,2]
[401409309,1768189845339,-150.0,0.0001665,2]
[401409311,1768189845351,-150.0,0.0001665,2]
[401409313,1768189845363,-150.0,0.0001665,2]
[401409314,1768189845374,-150.0,0.0001665,2]
[401409315,1768189845386,-350.68764993,0.00016655,2]
[401409316,1768189845398,-350.68764993,0.00016673,2]
[401409317,1768189845410,-500.0,0.00016685,2]
[401409318,1768189845421,-350.68764993,0.00016691,2]
[401409319,1768189845431,-736.0,0.00016697,2]
[401409320,1768189845443,-1000.0,0.00016702,2]
[401409321,1768189845453,-350.68764993,0.00016709,2]
[401409322,1768189845463,-595.37131296,0.0001671,2]
[401409323,1768189845475,-150.0,0.00016714,2]
[401409324,1768189845486,-150.0,0.00016714,2]
[401409325,1768189845496,-843.0,0.0001672,2]
[401409326,1768189845507,-350.68764993,0.00016727,2]
[401409327,1768189845517,-150.0,0.0001674,2]
[401409328,1768189845529,-350.68764993,0.00016745,2]
[401409329,1768189845540,-150.0,0.00016754,2]
[401409330,1768189845551,-350.68764993,0.00016764,2]
[401409331,1768189845562,-175.31,0.00016778,2]
[401409332,1768189845572,-171.53,0.00016778,2]
[401409333,1768189845583,-350.68764993,0.00016782,2]
[401409334,1768189845593,-500.0,0.00016799,2]
[401409335,1768189845604,-510.98377513,0.00016799,2]
[401409336,1768189845615,-150.0,0.000168,2]
[401409337,1768189845628,-350.68764993,0.000168,2]
[401409338,1768189845640,-150.0,0.000168,2]
[401409339,1768189845650,-150.0,0.000168,2]
[401409340,1768189845660,-350.68764993,0.00016818,2]
[401409341,1768189845670,-350.68764993,0.00016836,2]
[401409342,1768189845684,-150.0,0.00016843,2]
[401409343,1768189845694,-150.0,0.00016843,2]
[401409344,1768189845704,-350.68764993,0.00016855,2]
[401409345,1768189845715,-350.68764993,0.00016873,2]
[401409346,1768189845725,-192.89,0.00016873,2]
[401409347,1768189845735,-1000.0,0.00016874,2]
[401409348,1768189845745,-10400.84246454,0.00016874,2]
[401409349,1768189845755,-14654.50615538,0.00016874,2]
[401409350,1768189845766,-150.0,0.00016875,2]
[401409351,1768189845776,-150.0,0.00016875,2]
[401409352,1768189845786,-350.68764993,0.00016891,2]
[401409353,1768189845796,-150.0,0.00016892,2]
[401409354,1768189845806,-350.68764993,0.00016909,2]
[401409355,1768189845816,-150.0,0.0001692,2]
[401409356,1768189845826,-350.68764993,0.00016927,2]
[401409357,1768189845837,-395.0,0.00016933,2]
[401409358,1768189845847,-1073.4,0.00016936,2]
[401409359,1768189845857,-1101.0,0.00016945,2]
[401409360,1768189845867,-350.68764993,0.00016945,2]
[401409361,1768189845881,-150.0,0.0001695,2]
[401409362,1768189845892,-1000.0,0.00016963,2]
[401409363,1768189845902,-350.68764993,0.00016964,2]
[401409364,1768189845912,-150.0,0.00016971,2]
[401409365,1768189845922,-150.0,0.00016971,2]
[401409366,1768189845932,-683.82645385,0.00016977,2]
[401409367,1768189845943,-350.68764993,0.00016982,2]
[401409368,1768189845954,-350.68764993,0.00017,2]
[401409369,1768189845966,-250.0,0.00017,2]
[401409370,1768189845976,-350.68764993,0.00017018,2]
[401409371,1768189845987,-1000.0,0.00017026,2]
[401409372,1768189845997,-150.0,0.00017031,2]
[401409373,1768189846007,-1073.4,0.00017033,2]
[401409374,1768189846018,-350.68764993,0.00017036,2]
[401409375,1768189846028,-664.1,0.00017041,2]
[401409376,1768189846039,-965.53,0.00017041,2]
[401409377,1768189846050,-661.95,0.00017041,2]
[401409378,1768189846060,-661.95,0.00017041,2]
[401409379,1768189846072,-661.95,0.00017041,2]
[401409380,1768189846082,-661.95,0.00017041,2]
[401409381,1768189846093,-350.68764993,0.00017055,2]
[401409382,1768189846105,-173.30819609,0.00017073,2]
[401409383,1768189846116,-500.64635657,0.00017073,2]
[401409384,1768189846127,-500.84079337,0.00017073,2]
[401409385,1768189846138,-500.0,0.00017073,2]
[401409386,1768189846148,-500.0,0.00017073,2]
[401409387,1768189846158,-503.84192068,0.00017073,2]
[401409388,1768189846170,-166.96227274,0.00017073,2]
[401409389,1768189846180,-500.0,0.00017073,2]
[401409390,1768189846190,-500.0,0.00017073,2]
[401409391,1768189846201,-500.0,0.00017073,2]
[401409392,1768189846211,-500.0,0.00017073,2]
[401409393,1768189846221,-500.0,0.00017073,2]
[401409394,1768189846230,-501.77861007,0.00017073,2]
[401409395,1768189846240,-500.0,0.00017073,2]
[401409396,1768189846249,-500.51842778,0.00017073,2]
[401409397,1768189846259,-500.0,0.00017073,2]
[401409398,1768189846271,-500.0,0.00017073,2]
[401409399,1768189846282,-540.4577012,0.00017073,2]
[401409400,1768189846294,-501.85422751,0.00017073,2]
[401409401,1768189846304,-500.53829083,0.00017073,2]
[401409402,1768189846314,-500.57959935,0.00017073,2]
[401409403,1768189846324,-500.0,0.00017073,2]
[401409404,1768189846333,-169.17232811,0.00017073,2]
[401409405,1768189846343,-501.67211681,0.00017073,2]
[401409406,1768189846352,-500.83788468,0.00017073,2]
[401409407,1768189846362,-500.0,0.00017073,2]
[401409408,1768189846372,-500.26791262,0.00017073,2]
[401409409,1768189846383,-500.0,0.00017073,2]
[401409410,1768189846392,-162.59101262,0.00017073,2]
[401409411,1768189846404,-500.0,0.00017073,2]
[401409412,1768189846416,-486.88056707,0.00017073,2]
[401409413,1768189846426,-503.00247421,0.00017073,2]
[401409414,1768189846436,-500.0,0.00017073,2]
[401409415,1768189846446,-500.19211788,0.00017073,2]
[401409416,1768189846466,-500.38035534,0.00017073,2]
[401409417,1768189846477,-647.42016729,0.00017073,2]
[401409418,1768189846488,-500.0,0.00017073,2]
[401409419,1768189846499,-500.84213941,0.00017073,2]
[401409420,1768189846509,-500.0,0.00017073,2]
[401409421,1768189846519,-350.68764993,0.00017073,2]
[401409422,1768189846530,-30000.0,0.00017081,2]
[401409423,1768189846540,-350.68764993,0.00017091,2]
[401409424,1768189846551,-150.0,0.00017091,2]
[401409425,1768189846727,-150.0,0.000171,2]
[401409426,1768189846738,-150.0,0.000171,2]
[401409427,1768189846748,-150.0,0.000171,2]
[401409428,1768189846764,-150.0,0.000171,2]
[401409429,1768189846774,-150.0,0.000171,2]
[401409430,1768189846784,-150.0,0.000171,2]
[401409431,1768189846795,-150.0,0.000171,2]
[401409432,1768189846807,-150.0,0.000171,2]
[401409433,1768189846816,-350.68764993,0.00017109,2]
[401409434,1768189846827,-350.68764993,0.00017127,2]
[401409435,1768189846838,-1000.0,0.00017128,2]
[401409436,1768189846849,-1073.4,0.00017129,2]
[401409437,1768189846859,-809.67411052,0.00017131,2]
[401409438,1768189846868,-350.68764993,0.00017145,2]
[401409439,1768189846878,-350.68764993,0.00017164,2]
[401409440,1768189846887,-1047.04298225,0.00017168,2]
[401409441,1768189846896,-150.0,0.00017169,2]
[401409442,1768189846906,-500.0,0.00017177,2]
[401409443,1768189846915,-305.42,0.00017178,2]
[401409444,1768189846925,-301.93,0.00017178,2]
[401409445,1768189846934,-178.11,0.00017178,2]
[401409446,1768189846944,-157.73,0.00017178,2]
[401409447,1768189846954,-171.53,0.00017178,2]
[401409448,1768189846966,-467.15,0.00017178,2]
[401409449,1768189846975,-150.0,0.00017178,2]
[401409450,1768189846985,-171.53,0.00017178,2]
[401409451,1768189846995,-467.15,0.00017178,2]
[401409452,1768189847006,-150.0,0.00017178,2]
[401409453,1768189847017,-171.53,0.00017178,2]
[401409454,1768189847028,-150.0,0.00017178,2]
[401409455,1768189847039,-467.15,0.00017178,2]
[401409456,1768189847050,-171.53,0.00017178,2]
[401409457,1768189847061,-467.15,0.00017178,2]
[401409458,1768189847070,-350.68764993,0.00017182,2]
[401409459,1768189847080,-350.68764993,0.000172,2]
[401409460,1768189847091,-1000.0,0.000172,2]
[401409461,1768189847103,-8400.0,0.000172,6]
[401409462,1768189847112,-350.68764993,0.00017218,2]
[401409463,1768189847126,-1073.4,0.00017226,2]
[401409464,1768189847139,-150.0,0.00017229,2]
[401409465,1768189847148,-150.0,0.00017229,2]
[401409466,1768189847159,-350.68764993,0.00017236,2]
[401409467,1768189847174,-150.0,0.0001725,2]
[401409468,1768189847186,-350.68764993,0.00017255,2]
[401409469,1768189847198,-231.49,0.00017255,2]
[401409470,1768189847211,-617.40005154,0.00017258,2]
[401409471,1768189847221,-350.68764993,0.00017273,2]
[401409472,1768189847232,-395.0,0.00017276,2]
[401409473,1768189847243,-1000.0,0.00017276,2]
[401409474,1768189847254,-150.0,0.0001728,2]
[401409475,1768189847266,-823.0,0.00017281,2]
[401409476,1768189847279,-965.0,0.00017281,2]
[401409477,1768189847289,-350.68764993,0.00017291,2]
[401409478,1768189847299,-11300.0,0.000173,6]
[401409479,1768189847309,-395.0,0.00017303,2]
[401409480,1768189847319,-150.0,0.00017308,2]
[401409481,1768189847330,-350.68764993,0.00017309,2]
[401409482,1768189847341,-250.0,0.00017319,2]
[401409483,1768189847352,-1073.4,0.00017323,2]
[401409484,1768189847362,-150.0,0.00017325,2]
[401409485,1768189847373,-150.0,0.00017325,2]
[401409486,1768189847383,-1000.0,0.00017326,2]
[401409487,1768189847394,-350.68764993,0.00017327,2]
[401409488,1768189847404,-350.68764993,0.00017345,2]
[401409489,1768189847413,-150.0,0.00017357,2]
[401409490,1768189847423,-150.0,0.00017357,2]
[401409491,1768189847434,-1000.0,0.0001736,2]
[401409492,1768189847444,-350.68764993,0.00017364,2]
[401409493,1768189847454,-350.68764993,0.00017382,2]
[401409494,1768189847464,-10400.84246454,0.00017387,2]
[401409495,1768189847474,-14654.50615538,0.00017387,2]
[401409496,1768189847483,-158.73335703,0.00017398,2]
[401409497,1768189847499,-395.0,0.000174,2]
[401409498,1768189847509,-150.0,0.000174,2]
[401409499,1768189847519,-350.68764993,0.000174,2]
[401409500,1768189847528,-150.0,0.000174,2]
[401409501,1768189847538,-150.0,0.000174,2]
[401409502,1768189847548,-1000.0,0.000174,2]
[401409503,1768189847558,-14100.0,0.000174,6]
[401409504,1768189847568,-1000.0,0.00017401,2]
[401409505,1768189847578,-500.0,0.00017402,2]
[401409506,1768189847588,-395.0,0.00017406,2]
[401409507,1768189847599,-350.68764993,0.00017418,2]
[401409508,1768189847608,-1073.4,0.0001742,2]
[401409509,1768189847619,-350.68764993,0.00017436,2]
[401409510,1768189847629,-150.0,0.00017446,2]
[401409511,1768189847639,-150.87,0.00017452,2]
[401409512,1768189847649,-150.0,0.00017452,2]
[401409513,1768189847659,-150.0,0.00017452,2]
[401409514,1768189847669,-350.68764993,0.00017455,2]
[401409515,1768189847679,-150.0,0.0001746,2]
[401409516,1768189847690,-350.68764993,0.00017473,2]
[401409517,1768189847701,-150.0,0.00017486,2]
[401409518,1768189847711,-150.0,0.00017486,2]
[401409519,1768189847721,-350.68764993,0.00017491,2]
[401409520,1768189847732,-2800.0,0.000175,6]
[401409521,1768189847742,-350.68764993,0.00017509,2]
[401409522,1768189847752,-1073.4,0.00017516,2]
[401409523,1768189847763,-1000.0,0.00017522,2]
[401409524,1768189847774,-350.68764993,0.00017527,2]
[401409525,1768189847784,-350.68764993,0.00017545,2]
[401409526,1768189847794,-395.0,0.00017547,2]
[401409527,1768189847804,-150.0,0.0001755,2]
[401409528,1768189847814,-150.0,0.0001755,2]
[401409529,1768189847824,-150.0,0.0001755,2]
[401409530,1768189847834,-150.0,0.0001755,2]
[401409531,1768189847843,-350.68764993,0.00017564,2]
[401409532,1768189847853,-661.58,0.00017575,2]
[401409533,1768189847866,-350.68764993,0.00017582,2]
[401409534,1768189847876,-395.0,0.00017584,2]
[401409535,1768189847887,-150.0,0.00017585,2]
[401409536,1768189847897,-1000.0,0.00017595,2]
[401409537,1768189847907,-350.68764993,0.000176,2]
[401409538,1768189847917,-2800.0,0.000176,6]
[401409539,1768189847927,-342.98,0.000176,2]
[401409540,1768189847937,-342.85,0.000176,2]
[401409541,1768189847947,-467.15,0.000176,2]
[401409542,1768189847957,-934.1,0.00017601,2]
[401409543,1768189847967,-467.05,0.00017601,2]
[401409544,1768189847977,-395.0,0.00017612,2]
[401409545,1768189847987,-1073.4,0.00017613,2]
[401409546,1768189847996,-150.0,0.00017614,2]
[401409547,1768189848006,-150.0,0.00017614,2]
[401409548,1768189848017,-1030.21,0.00017615,2]
[401409549,1768189848027,-350.68764993,0.00017618,2]
[401409550,1768189848039,-501.68963282,0.00017621,2]
[401409551,1768189848050,-501.81552952,0.00017621,2]
[401409552,1768189848064,-500.52073568,0.00017621,2]
[401409553,1768189848075,-1002.68294103,0.00017621,2]
[401409554,1768189848086,-604.83613644,0.00017621,2]
[401409555,1768189848101,-1001.39881462,0.00017621,2]
[401409556,1768189848111,-1001.49774725,0.00017621,2]
[401409557,1768189848123,-1000.0,0.00017621,2]
[401409558,1768189848135,-1000.0,0.00017621,2]
[401409559,1768189848145,-1000.0,0.00017621,2]
[401409560,1768189848155,-1001.98142269,0.00017621,2]
[401409561,1768189848165,-1000.0,0.00017621,2]
[401409562,1768189848175,-1002.11848052,0.00017621,2]
[401409563,1768189848184,-502.50985622,0.00017621,2]
[401409564,1768189848194,-1000.0,0.00017621,2]
[401409565,1768189848203,-1000.0,0.00017621,2]
[401409566,1768189848213,-1000.0,0.00017621,2]
[401409567,1768189848223,-1000.0,0.00017631,2]
[401409568,1768189848233,-350.68764993,0.00017636,2]
[401409569,1768189848242,-150.0,0.0001764,2]
[401409570,1768189848251,-2526.34474309,0.0001764,2]
[401409571,1768189848261,-350.68764993,0.00017655,2]
[401409572,1768189848271,-395.0,0.0001767,2]
[401409573,1768189848280,-1054.4366,0.00017671,2]
[401409574,1768189848290,-350.68764993,0.00017673,2]
[401409575,1768189848300,-350.68764993,0.00017691,2]
[401409576,1768189848310,-948.39,0.00017696,2]
[401409577,1768189848321,-150.0,0.000177,2]
[401409578,1768189848331,-150.0,0.000177,2]
[401409579,1768189848343,-2800.0,0.000177,6]
[401409580,1768189848353,-500.0,0.00017705,2]
[401409581,1768189848363,-350.68764993,0.00017709,2]
[401409582,1768189848373,-1073.4,0.0001771,2]
[401409583,1768189848383,-150.0,0.00017723,2]
[401409584,1768189848394,-350.68764993,0.00017727,2]
[401409585,1768189848404,-500.0,0.00017729,2]
[401409586,1768189848415,-500.0,0.00017729,2]
[401409587,1768189848426,-500.0,0.00017729,2]
[401409588,1768189848436,-500.0,0.00017729,2]
[401409589,1768189848446,-500.0,0.00017729,2]
[401409590,1768189848457,-150.0,0.00017743,2]
[401409591,1768189848468,-150.0,0.00017743,2]
[401409592,1768189848479,-350.68764993,0.00017745,2]
[401409593,1768189848491,-1000.0,0.00017761,2]
[401409594,1768189848501,-350.68764993,0.00017764,2]
[401409595,1768189848513,-1000.0,0.0001777,2]
[401409596,1768189848523,-317.89217192,0.00017772,2]
[401409597,1768189848534,-150.0,0.00017775,2]
[401409598,1768189848543,-150.0,0.00017775,2]
[401409599,1768189848554,-350.68764993,0.00017782,2]
[401409600,1768189848564,-231.49,0.0001779,2]
[401409601,1768189848574,-350.68764993,0.000178,2]
[401409602,1768189848584,-1000.0,0.000178,2]
[401409603,1768189848594,-2800.0,0.000178,6]
[401409604,1768189848605,-666.72878,0.00017804,2]
[401409605,1768189848615,-346.92554585,0.00017804,2]
[401409606,1768189848626,-395.0,0.00017805,2]
[401409607,1768189848636,-998.0,0.00017805,2]
[401409608,1768189848646,-640.24385345,0.00017806,2]